Body,Body Name,Service Label,Service Code,Expenditure Category,Expenditure Code,Narrative,Date ,Transaction Number,Amount,Capital/Revenue/Precept,Supplier Name,Supplier ID
32UB,Boston Borough Council,Vehicle Holding Account,2206,Miscellaneous,3905,STEAM CLEANING - NOVEMBER 2020,21/05/2021,216499,1875,Revenue,Peter Smith Commercials Ltd,11923
32UB,Boston Borough Council,Development Management,3306,Software Maintenance,3408,01.04.21-31.03.21 MAINTENANCE & PORTAL,14/05/2021,223293,23631.25,Revenue,Agile Applications Limited,9882
32UB,Boston Borough Council,Planning Policy,3304,Software Maintenance,3408,01.02.21-31.01.22 MAPINFO PRO,14/05/2021,223294,2440,Revenue,Agile Applications Limited,9882
32UB,Boston Borough Council,High Street Fund,3247,Publicity,3513,PROVISION OF AVAILABILITY,07/05/2021,223922,4000,Revenue,Arc Business Services Ltd.The Retail Champion,16296
32UB,Boston Borough Council,Covid 19,3246,Miscellaneous,3905,02.04.21-08.04.21 RENT,07/05/2021,224051,2940,Revenue,The New England Hotel,15731
32UB,Boston Borough Council,"Arts, Heritage & Tourism",3407,Exhibitions And Displays,3016,LORRY & CRANE HIRE PORT OF BOSTON,07/05/2021,224126,1000,Revenue,The Rspb,886
32UB,Boston Borough Council,Covid 19,3246,Miscellaneous,3905,FLOORING WORKS - ST JOHNS DEPOT,07/05/2021,224129,741.44,Revenue,Lincolnshire Flooring Company (Contracts) Ltd,211
32UB,Boston Borough Council,Recycling,3238,Printing And Stationery,3201,"10,000 BLUE BIN ADVISORY TAGS",07/05/2021,224174,712.7,Revenue,Daymark Labels,14449
32UB,Boston Borough Council,Recycling,3238,Printing And Stationery,3201,"20,000 BLUE BIN CONTAMINATED TAGS",07/05/2021,224174,1425.4,Revenue,Daymark Labels,14449
32UB,Boston Borough Council,Recycling,3238,Printing And Stationery,3201,"20,000 GREEN BIN REJECTED TAGS",07/05/2021,224174,1425.4,Revenue,Daymark Labels,14449
32UB,Boston Borough Council,Recycling,3238,Printing And Stationery,3201,"20,000 PURPLE BIN CONTAMINATED TAGS",07/05/2021,224174,1425.4,Revenue,Daymark Labels,14449
32UB,Boston Borough Council,Building Mtc-Public Buildings,4402,Materials,3006,CENTRAL PARK -CCTV & STREET LIGHTS,07/05/2021,224191,855.52,Revenue,D & M Barthorpe,210
32UB,Boston Borough Council,Housing Benefits,2507,Professional Services,3301,DWP LA DATA SHARING TO 31.03.21,21/05/2021,224192,2973.3,Revenue,Capita Software Services Limited,121
32UB,Boston Borough Council,Building Mtc-Public Buildings,4402,Materials,3006,DS HAMMERITE SMOOTH DARK BLUE PAINT,07/05/2021,224276,476.6,Revenue,Crown Paints Limited,5115
32UB,Boston Borough Council,Elections,3103,Postages,3405,POSTAL POLL LETTER POSTAGE,07/05/2021,224515,3330.84,Revenue,Print Image Facilities Llp,9345
32UB,Boston Borough Council,Property Services,1403,Software Licences,3407,01.05.21-30.04.22 TF CLOUD,07/05/2021,224517,5286,Revenue,The Technology Forge Limited,13752
32UB,Boston Borough Council,Credit Control Unit,1013,Recovery Costs,4617,FEES PAID & VAT DUE ON COUNCIL TAX,07/05/2021,224523,305,Revenue,Bristow Sutor,8383
32UB,Boston Borough Council,Environmental Initiatives,3458,Environmental Education (Bbl),3039,LITTER PICKER PRO,14/05/2021,224530,989,Revenue,The Helping Hand Company Ledbury Limited,324
32UB,Boston Borough Council,Dog Collection,3219,Professional Services,3301,DOG COLLECTION - MARCH 21,14/05/2021,224536,1120.83,Revenue,Pestinator Uk Ltd,13043
32UB,Boston Borough Council,Vehicle Holding Account,2206,Chris Sellars Payg,3045,TRAILERED GANG MOWER WINTER SERVICE - INCLUDING REPLACING BLADES/ROLLERS/BREAK AWAY CABLE,07/05/2021,224540,4337.9,Revenue,Chris Sellars Groundcare Ltd,6627
32UB,Boston Borough Council,Vehicle Holding Account,2206,Sfs Payg,3043,LS20 XDB RAVE PLATE & MARKER LAMP,07/05/2021,224552,484.42,Revenue,Specialist Fleet Services Ltd,16163
32UB,Boston Borough Council,Vehicle Holding Account,2206,Sfs Payg,3043,VK70 XZX DOOR CHECK STRAP,07/05/2021,224555,278.55,Revenue,Specialist Fleet Services Ltd,16163
32UB,Boston Borough Council,Vehicle Holding Account,2206,Sfs Payg,3043,H4 BBC RAVE PLATE HINGES,07/05/2021,224561,496.78,Revenue,Specialist Fleet Services Ltd,16163
32UB,Boston Borough Council,Vehicle Holding Account,2206,Sfs Payg,3043,RUN DIAGNOSTICS REPLACE ALL GLOW PLUGS AND DE COKE ALL REMOVED PARTS - REBUILD AND ROAD TEST -YR16 OFJ,07/05/2021,224565,566,Revenue,Specialist Fleet Services Ltd,16163
32UB,Boston Borough Council,Vehicle Holding Account,2206,Sfs Fixed Maintenance,3042,LT21 NDN CONTRACT MAINTENANCE APRIL 2021,07/05/2021,224566,1504.17,Revenue,Specialist Fleet Services Ltd,16163
32UB,Boston Borough Council,Vehicle Holding Account,2206,Sfs Fixed Maintenance,3042,GK20 UYN CONTRACT MAINTENANCE APRIL 2021,07/05/2021,224566,1614.08,Revenue,Specialist Fleet Services Ltd,16163
32UB,Boston Borough Council,Vehicle Holding Account,2206,Sfs Fixed Maintenance,3042,LS20 XDB CONTRACT MAINTENANCE APRIL 2021,07/05/2021,224566,1620.83,Revenue,Specialist Fleet Services Ltd,16163
32UB,Boston Borough Council,Vehicle Holding Account,2206,Renewal Costs Misc,2206,VK70 XZX CONTRACT MAINTENANCE APRIL 2021,07/05/2021,224566,1829.17,Revenue,Specialist Fleet Services Ltd,16163
32UB,Boston Borough Council,Vehicle Holding Account,2206,Sfs Fixed Maintenance,3042,VK70 XZT CONTRACT MAINTENANCE APRIL 2021,07/05/2021,224566,1829.17,Revenue,Specialist Fleet Services Ltd,16163
32UB,Boston Borough Council,Vehicle Holding Account,2206,Sfs Fixed Maintenance,3042,VK70 XZU CONTRACT MAINTENANCE APRIL 2021,07/05/2021,224566,1829.17,Revenue,Specialist Fleet Services Ltd,16163
32UB,Boston Borough Council,Vehicle Holding Account,2206,Sfs Fixed Maintenance,3042,VK70 XZV CONTRACT MAINTENANCE APRIL 2021,07/05/2021,224566,1829.17,Revenue,Specialist Fleet Services Ltd,16163
32UB,Boston Borough Council,Vehicle Holding Account,2206,Sfs Fixed Maintenance,3042,VK70 XZW CONTRACT MAINTENANCE APRIL 2021,07/05/2021,224566,1829.17,Revenue,Specialist Fleet Services Ltd,16163
32UB,Boston Borough Council,Vehicle Holding Account,2206,Sfs Fixed Maintenance,3042,VK70 XZZ CONTRACT MAINTENANCE APRIL 2021,07/05/2021,224566,1829.17,Revenue,Specialist Fleet Services Ltd,16163
32UB,Boston Borough Council,Vehicle Holding Account,2206,Sfs Fixed Maintenance,3042,VX18 KFG CONTRACT MAINTENANCE APRIL 2021,07/05/2021,224566,1829.17,Revenue,Specialist Fleet Services Ltd,16163
32UB,Boston Borough Council,Vehicle Holding Account,2206,Sfs Fixed Maintenance,3042,VK70 XZY CONTRACT MAINTENANCE APRIL 2021,07/05/2021,224566,1829.17,Revenue,Specialist Fleet Services Ltd,16163
32UB,Boston Borough Council,Vehicle Holding Account,2206,Sfs Fixed Maintenance,3042,H4 BBC CONTRACT MAINTENANCE APRIL 2021,07/05/2021,224566,1913.58,Revenue,Specialist Fleet Services Ltd,16163
32UB,Boston Borough Council,Environmental Initiatives,3458,Environmental Education (Bbl),3039,SP-4093 BOXES RED HEAVY DUTY REFUSE SACKS 457,07/05/2021,225566,1074,Revenue,Pmc Polythene Ltd,8341
32UB,Boston Borough Council,Street Cleansing Service,3235,Specialist Services,4602,COLLECTION OF SHARPS WASTE 1100LTR BIN 04/21,07/05/2021,225568,500,Revenue,Healthguard Ltd,3406
32UB,Boston Borough Council,Pe21 Boston Town Deal,6519,Payments To Contractors,8002,DEVELOPMENT APPRAISAL FEE,21/05/2021,225571,2250,Capital,Banks Long,15878
32UB,Boston Borough Council,Corporate & Democratic Core,3102,Subscriptions,3600,LGA MEMBERSHIP 2021-22,07/05/2021,225572,6496.35,Revenue,Local Government Association,7212
32UB,Boston Borough Council,Elections,3103,Postages,3405,2021 - POLL CARDS & LETTERS,07/05/2021,225574,2918.75,Revenue,Print Image Network Ltd,12844
32UB,Boston Borough Council,Cctv,3206,Equipment Purchase,3001,BOSTON CENTRAL PARK - LABOUR & EQUIPMENT,14/05/2021,225577,2901,Revenue,Ingamells Ground-Works & Construction Ltd,11226
32UB,Boston Borough Council,Building Mtc-Public Buildings,4402,Materials,3006,BOSTON CENTRAL PARK - LABOUR & EQUIPMENT,14/05/2021,225577,1701,Revenue,Ingamells Ground-Works & Construction Ltd,11226
32UB,Boston Borough Council,Building Mtc-Public Buildings,4402,Materials,3006,MUNICIPAL BUILDINGS - LIGHTING,14/05/2021,225579,261.36,Revenue,D & M Barthorpe,210
32UB,Boston Borough Council,Commercial Waste,3237,Refuse Bin Purchase,3865,660 LITRE BLUE BINS,07/05/2021,225585,386.2,Revenue,A & C Weber Uk Ltd,11142
32UB,Boston Borough Council,Commercial Waste,3237,Refuse Bin Purchase,3865,660 LITRE GREEN BINS,07/05/2021,225585,386.2,Revenue,A & C Weber Uk Ltd,11142
32UB,Boston Borough Council,Commercial Waste,3237,Refuse Bin Purchase,3865,"1,100 LITRE GREEN BINS",07/05/2021,225585,932,Revenue,A & C Weber Uk Ltd,11142
32UB,Boston Borough Council,Computer Costs,1503,Software Maintenance,3408,WEB SERVICES ANNUAL RENEWAL 1 APRIL 2021 - 31 MARCH 2022,14/05/2021,225597,1071.65,Revenue,Abavus Limited,12232
32UB,Boston Borough Council,Computer Costs,1503,Software Maintenance,3408,APPS AND E FORMS ANNUAL RENEWAL 24 MARCH 2021 - 23 MARCH 2022,14/05/2021,225597,7501.46,Revenue,Abavus Limited,12232
32UB,Boston Borough Council,Bed & Breakfast,3222,Bed And Breakfast Accom Fees,3306,16.04.21 - 22.04.21 INDIVIDUAL RENT,07/05/2021,225602,855,Revenue,The New England Hotel,15731
32UB,Boston Borough Council,Covid 19,3246,Miscellaneous,3905,16.04.21-22.04.21 RENT,07/05/2021,225603,2940,Revenue,The New England Hotel,15731
32UB,Boston Borough Council,Covid 19,3246,Miscellaneous,3905,SECURITY 16.04.21-22.04.21,07/05/2021,225604,1176,Revenue,The New England Hotel,15731
32UB,Boston Borough Council,Building Mtc-Public Buildings,4402,Materials,3006,22.04.21 AIR CONDITIONING HAVEN GALLERY,14/05/2021,225609,430,Revenue,Adcock Refrigeration & Air Conditioning Ltd,1682
32UB,Boston Borough Council,It Investment Programme,6201,Purchases,8005,WARRANTY - 3YR NBD,14/05/2021,225613,393.25,Capital,Insight Uk,5973
32UB,Boston Borough Council,Building Mtc-Public Buildings,4402,Materials,3006,23.04.21 GMLC AIR CON MAINTENANCE,21/05/2021,225614,385,Revenue,Adcock Refrigeration & Air Conditioning Ltd,1682
32UB,Boston Borough Council,Registration Of Electors,3109,Printing And Stationery,3201,2ND CLASS RETURN ENVELOPES AS ATTACHED,21/05/2021,225616,261.5,Revenue,Hound Envelopes Limited,8363
32UB,Boston Borough Council,Building Mtc-Public Buildings,4402,Materials,3006,MUNICIPAL BUILDINGS LIGHTS - 12.04.21,21/05/2021,225617,266.4,Revenue,D & M Barthorpe,210
32UB,Boston Borough Council,Legal Services,1402,Shared Services,3323,INTERIM INVOICE - PRSA ARRANGEMENTS,07/05/2021,225623,500,Revenue,Roythornes Solicitors,5987
32UB,Boston Borough Council,Community Testing Centre,3516,Overtime Payments,1022,W.E 24.04.21 SUPERVISOR,07/05/2021,225627,976.6,Revenue,Aligra Personnel Limited,16541
32UB,Boston Borough Council,Elections,3103,Postages,3405,25.01.21 - 15.04.21 POST CHARGES,21/05/2021,225840,445.7,Revenue,Royal Mail,86
32UB,Boston Borough Council,Vehicle Holding Account,2206,Chris Sellars Payg,3045,RANSOME HR3300T AY10 EVT FLEET NO. VF65 WINTER SERVICE,14/05/2021,225841,857.2,Revenue,Chris Sellars Groundcare Ltd,6627
32UB,Boston Borough Council,Community Testing Centre,3516,Equipment Purchase,3001,30.04.21-30.06.21 CHARGES,05/05/2021,225844,2440,Revenue,Nationwide Hire Uk,16615
32UB,Boston Borough Council,Refuse Collection,3234,Agency Staff,1032,"SUPPLY OF TEMPORARY STAFF W/E 11.04,18.04,25.04",07/05/2021,225845,8283.68,Revenue,Comensura Ltd,9671
32UB,Boston Borough Council,Grounds Maintenance,4401,Agency Staff,1032,"SUPPLY OF TEMPORARY STAFF W/E 11.04,18.04,25.04",07/05/2021,225845,448.05,Revenue,Comensura Ltd,9671
32UB,Boston Borough Council,Office Cleaning,3203,Agency Staff,1032,CLEANERS X 2,14/05/2021,225847,569.53,Revenue,Workforce (Boston) Limited,11042
32UB,Boston Borough Council,Covid 19,3246,Miscellaneous,3905,AGENCY ADMIN,07/05/2021,225848,455.47,Revenue,Workforce (Boston) Limited,11042
32UB,Boston Borough Council,Community Champions: La Fund,1019,Training Courses,1108,MEDIA TRAINING FOR CABINET TUES 16TH FEB 2021,14/05/2021,225850,900,Revenue,Ultravox Training Ltd,16208
32UB,Boston Borough Council,Markets,3424,Advertising,3203,22.04.21-02.06.21 MARKET PROMOTION,21/05/2021,225852,400,Revenue,Radiant Media Limited,16340
32UB,Boston Borough Council,Community Testing Centre,3516,Equipment Purchase,3001,23.03.21-26.03.21 HIRE,07/05/2021,225853,293.25,Revenue,Trusthorpe Village Hall,16616
32UB,Boston Borough Council,Community Testing Centre,3516,Equipment Purchase,3001,30.03.21-02.04.21 HIRE,07/05/2021,225854,293.25,Revenue,Trusthorpe Village Hall,16616
32UB,Boston Borough Council,Community Testing Centre,3516,Equipment Purchase,3001,06.04.21-09.04.21 HIRE,07/05/2021,225855,293.25,Revenue,Trusthorpe Village Hall,16616
32UB,Boston Borough Council,Community Testing Centre,3516,Equipment Purchase,3001,13.04.21-16.04.21 HIRE,07/05/2021,225856,293.25,Revenue,Trusthorpe Village Hall,16616
32UB,Boston Borough Council,Community Testing Centre,3516,Equipment Purchase,3001,20.04.21-23.04.21 HIRE,07/05/2021,225857,293.25,Revenue,Trusthorpe Village Hall,16616
32UB,Boston Borough Council,Corporate & Democratic Core,3102,Subscriptions,3600,MEMBERSHIP FEE 2021/22,21/05/2021,225863,1055,Revenue,District Council'S Network,11675
32UB,Boston Borough Council,Street Cleansing Service,3235,Specialist Services,4602,COLLECTION AND DISPOSAL OF LARGE FLY TIP OF ASBESTOS AND OTHER LARGE ITEMS,14/05/2021,225881,1400,Revenue,Mcp Environmental Llp,12791
32UB,Boston Borough Council,Community Testing Centre,3516,Equipment Purchase,3001,01.04.21-16.04.21 TRIME DSEL X ECO TM/SN,21/05/2021,225891,601.05,Revenue,Sunbelt Rentals Limited,449
32UB,Boston Borough Council,Building Mtc-Public Buildings,4402,Materials,3006,16.12.20PUBLIC CONVENIENCES WATER HEATER,21/05/2021,225896,1160,Revenue,Princebuild Limited,2152
32UB,Boston Borough Council,Building Mtc-Public Buildings,4402,Materials,3006,26.02.21 MAYFLOWER UNITS,21/05/2021,225906,2195,Revenue,Princebuild Limited,2152
32UB,Boston Borough Council,Building Mtc-Public Buildings,4402,Materials,3006,03.02.21 CEMETERY GUTTER CLEARANCE,21/05/2021,225907,420,Revenue,Princebuild Limited,2152
32UB,Boston Borough Council,Community Testing Centre,3516,Overtime Payments,1022,W.E 25.04.21 TEMPORARY WORKERS,27/05/2021,225909,5386.5,Revenue,Als Managed Services Limited,16620
32UB,Boston Borough Council,Covid 19,3246,Miscellaneous,3905,SECURITY 23.04.21-29.04.21,07/05/2021,225912,1176,Revenue,The New England Hotel,15731
32UB,Boston Borough Council,Covid 19,3246,Miscellaneous,3905,23.04.21-29.04.21 ROOMS,07/05/2021,225913,2940,Revenue,The New England Hotel,15731
32UB,Boston Borough Council,Bed & Breakfast,3222,Bed And Breakfast Accom Fees,3306,23.04.21-29.04.21 INDIVIDUAL RENT,07/05/2021,225914,945,Revenue,The New England Hotel,15731
32UB,Boston Borough Council,Building Mtc-Public Buildings,4402,Materials,3006,GMLC - POOL 3 PORT VALUE INSTALLATION,27/05/2021,225915,1950,Revenue,Glen Farrow Uk Ltd,12204
32UB,Boston Borough Council,Covid 19,3246,Miscellaneous,3905,05.04.21-04.05.21  SUBSCRIPTION FEE,21/05/2021,225916,1385.77,Revenue,Phoenix Software Ltd,644
32UB,Boston Borough Council,Bereavement,2401,Medical Assessors Fees,3302,MEDICAL REFEREE DUTIES APRIL 21,21/05/2021,225918,1165.5,Revenue,Dr Andrew Doddrell,10098
32UB,Boston Borough Council,Parking,3449,Materials,3006,CALE MP105 POP PAPER STUB,21/05/2021,225926,306,Revenue,Paperwork (Uk) Limited,728
32UB,Boston Borough Council,Building Mtc-Public Buildings,4402,Materials,3006,ST JOHNS DEPOT-27.04.21 & 28.04.21LABOUR,21/05/2021,225927,434,Revenue,D & M Barthorpe,210
32UB,Boston Borough Council,Community Testing Centre,3516,Equipment Purchase,3001,26.02.21-30.04.21SKIRBECK TESTING CENTRE,21/05/2021,225929,1560,Revenue,Blockfree Services Ltd - Lincs Loos,14119
32UB,Boston Borough Council,Housing Advice & Homelessness,3241,Project Costs,3935,03.05.21-02.06-21 42 CARLTON RD RENT,07/05/2021,225931,3068,Revenue,Smart Move (Boston) Limited,12920
32UB,Boston Borough Council,Housing Advice & Homelessness,3241,Project Costs,3935,04.05.21-03.06.21 81 WYBERTON LW RD RENT,07/05/2021,225932,2311.4,Revenue,Smart Move (Boston) Limited,12920
32UB,Boston Borough Council,Property Services,1403,Professional Services,3301,PROVISION OF ANNUAL REVALUATION OF GENERAL FUND PROPERTY ASSETS 2020-21,14/05/2021,225933,8500,Revenue,Kier Business Services Ltd,13077
32UB,Boston Borough Council,Building Mtc-Public Buildings,4402,Materials,3006,FENSIDE COMMUNITY CENTRE BOILER,21/05/2021,225934,305.5,Revenue,Glen Farrow Uk Ltd,12204
32UB,Boston Borough Council,Building Mtc-Public Buildings,4402,Materials,3006,GMLC - 09.03.21-11.03.21 WORKS,21/05/2021,225935,1089,Revenue,Glen Farrow Uk Ltd,12204
32UB,Boston Borough Council,Building Mtc-Public Buildings,4402,Materials,3006,MUNICIPAL BUILDINGS BURNER25.03-12.04.21,21/05/2021,225936,1884.65,Revenue,Glen Farrow Uk Ltd,12204
32UB,Boston Borough Council,Leisure Pool Services,3434,Rental Of Phone System,3418,FIBRESTREAM RENTAL JUNE 2021,14/05/2021,225937,368,Revenue,Multidata Ltd,12625
32UB,Boston Borough Council,Housing Benefit Fraud,3507,P'Ship Pay & Conts To Schemes,3601,FRAUD PARTNERSHIP 21/22,14/05/2021,225945,3000,Revenue,Lincolnshire County Council,12322
32UB,Boston Borough Council,Street Cleansing Service,3235,Fly Tipping Project,3325,HIRE OF NK63 JYY APRIL 2021,14/05/2021,225946,400,Revenue,Phil Haines Coaches Ltd,351
32UB,Boston Borough Council,Planning Policy,3304,Greater Lincs Nature Partnersh,4601,GREATER LINCS NATURE PARTNERSHIP,07/05/2021,225947,3825,Revenue,Lincolnshire Wildlife Trust,774
32UB,Boston Borough Council,Central Purchasing,1010,Corporate Publications,3202,"RECYCLING LEAFLETS, STICKERS, CARDS",07/05/2021,225948,253,Revenue,Chris Cook Print And Office Supplies,22
32UB,Boston Borough Council,Building Mtc-Public Buildings,4402,Materials,3006,GMLC - AHU NOT WORKING,21/05/2021,225949,329,Revenue,Glen Farrow Uk Ltd,12204
32UB,Boston Borough Council,Refuse Collection,3234,Agency Staff,1032,SUPPLY OF TEMPORARY STAFF W/E 02.05.21,14/05/2021,225961,6796.55,Revenue,Comensura Ltd,9671
32UB,Boston Borough Council,Grounds Maintenance,4401,Agency Staff,1032,SUPPLY OF TEMPORARY STAFF W/E 02.05.21,14/05/2021,225961,448.05,Revenue,Comensura Ltd,9671
32UB,Boston Borough Council,Covid 19,3246,Miscellaneous,3905,AGENCY ADMIN,14/05/2021,225963,455.47,Revenue,Workforce (Boston) Limited,11042
32UB,Boston Borough Council,Office Cleaning,3203,Agency Staff,1032,CLEANERS X 2,21/05/2021,225964,623.48,Revenue,Workforce (Boston) Limited,11042
32UB,Boston Borough Council,Marketing And Communications,1003,Language Line,3908,TELEPHONE INTERPRETING 06.04.21-29.04.21,21/05/2021,225966,370.82,Revenue,Thebigword,7256
32UB,Boston Borough Council,High Street Fund,3247,Publicity,3513,PROJECT ACTIVITY ,21/05/2021,225967,4800,Revenue,Arc Business Services Ltd.The Retail Champion,16296
32UB,Boston Borough Council,Princess Royal Sports Arena,3452,Gas,2022,BULK PROPANE,21/05/2021,225973,526.24,Revenue,Calor Gas Limited,13658
32UB,Boston Borough Council,Parking,3449,Cash Collection & Counting,4621,CASH COLLECTED APRIL 2021,21/05/2021,225976,856.61,Revenue,Kings Armoured Security Services Ltd,10472
32UB,Boston Borough Council,Parking,3449,Cash Collection & Counting,4621,CASH COLLECTED MARCH 2021,14/05/2021,225981,971.3,Revenue,Kings Armoured Security Services Ltd,10472
32UB,Boston Borough Council,Hackney Carriage Licences,3233,Hackney Carriges Expenses,3521,LIC0077-SERVICE-MP-1 TX PRIVATE HIRE MOGO LICENCE PLATE SET  ,14/05/2021,225987,498,Revenue,New Auto Ltd T/A Mogo Uk,7876
32UB,Boston Borough Council,Covid 19,3246,Miscellaneous,3905,ST JOHNS AIR CON INSTALLATION,27/05/2021,226049,1520,Revenue,Adcock Refrigeration & Air Conditioning Ltd,1682
32UB,Boston Borough Council,Computer Costs,1503,Hardware Maintenance,3410,APC 1 SMART UPS RT 5000 TBC MONDAY - FRIDAY 09:00-17:00 4 HOUR RESPONSE,27/05/2021,226053,355,Revenue,One Source It Ltd,13746
32UB,Boston Borough Council,Grants General,3455,Voluntary Org Grants,3602,Q1 2021/22 CORE GRANT,27/05/2021,226058,7750,Revenue,Lincolnshire Cvs,12071
32UB,Boston Borough Council,Vehicle Holding Account,2206,Sfs Fixed Maintenance,3042,LT21 NDN CONTRACT MAINTENANCE MAY 2021,27/05/2021,226059,1504.17,Revenue,Specialist Fleet Services Ltd,16163
32UB,Boston Borough Council,Vehicle Holding Account,2206,Sfs Fixed Maintenance,3042,GK20 UYN CONTRACT MAINTENANCE MAY 2021,27/05/2021,226059,1614.08,Revenue,Specialist Fleet Services Ltd,16163
32UB,Boston Borough Council,Vehicle Holding Account,2206,Sfs Fixed Maintenance,3042,LS20 XDB CONTRACT MAINTENANCE MAY 2021,27/05/2021,226059,1620.83,Revenue,Specialist Fleet Services Ltd,16163
32UB,Boston Borough Council,Vehicle Holding Account,2206,Renewal Costs Misc,2206,VK70 XZX CONTRACT MAINTENANCE MAY 2021,27/05/2021,226059,1829.17,Revenue,Specialist Fleet Services Ltd,16163
32UB,Boston Borough Council,Vehicle Holding Account,2206,Sfs Fixed Maintenance,3042,VK70 XZT CONTRACT MAINTENANCE MAY 2021,27/05/2021,226059,1829.17,Revenue,Specialist Fleet Services Ltd,16163
32UB,Boston Borough Council,Vehicle Holding Account,2206,Sfs Fixed Maintenance,3042,VK70 XZU CONTRACT MAINTENANCE MAY 2021,27/05/2021,226059,1829.17,Revenue,Specialist Fleet Services Ltd,16163
32UB,Boston Borough Council,Vehicle Holding Account,2206,Sfs Fixed Maintenance,3042,VK70 XZV CONTRACT MAINTENANCE MAY 2021,27/05/2021,226059,1829.17,Revenue,Specialist Fleet Services Ltd,16163
32UB,Boston Borough Council,Vehicle Holding Account,2206,Sfs Fixed Maintenance,3042,VK70 XZW CONTRACT MAINTENANCE MAY 2021,27/05/2021,226059,1829.17,Revenue,Specialist Fleet Services Ltd,16163
32UB,Boston Borough Council,Vehicle Holding Account,2206,Sfs Fixed Maintenance,3042,VK70 XZZ CONTRACT MAINTENANCE MAY 2021,27/05/2021,226059,1829.17,Revenue,Specialist Fleet Services Ltd,16163
32UB,Boston Borough Council,Vehicle Holding Account,2206,Sfs Fixed Maintenance,3042,VX18 KFG CONTRACT MAINTENANCE MAY 2021,27/05/2021,226059,1829.17,Revenue,Specialist Fleet Services Ltd,16163
32UB,Boston Borough Council,Vehicle Holding Account,2206,Sfs Fixed Maintenance,3042,VK70 XZY CONTRACT MAINTENANCE MAY 2021,27/05/2021,226059,1829.17,Revenue,Specialist Fleet Services Ltd,16163
32UB,Boston Borough Council,Vehicle Holding Account,2206,Sfs Fixed Maintenance,3042,H4 BBC CONTRACT MAINTENANCE MAY 2021,27/05/2021,226059,1913.58,Revenue,Specialist Fleet Services Ltd,16163
32UB,Boston Borough Council,Cctv,3206,Equipment Purchase,3001,SUPPLY & INSTALLATION OF VARIOUS EQUIPMENT,21/05/2021,226060,3379.78,Revenue,Videcom Security Limited,13418
32UB,Boston Borough Council,Community Testing Centre,3516,Equipment Purchase,3001,INFRASTRUCTURE HIRE 10.05.21-04.07.21,14/05/2021,226064,3980,Revenue,Number 8 Events Ltd,16630
32UB,Boston Borough Council,Building Mtc-Public Buildings,4402,Materials,3006,GMLC - TANK DOWN SERVICES & RESAMPLE,27/05/2021,226066,650,Revenue,Integrated Water Services Ltd,11294
32UB,Boston Borough Council,Elections,3103,Hire Of Halls,3931,06.05.21 HIRE OF HALL,14/05/2021,226070,441.6,Revenue,Holy Trinity Church,3014
32UB,Boston Borough Council,Photocopiers,2503,Paper Purchases,3017,A4 PAPER,21/05/2021,226074,739.2,Revenue,Canon (Uk) Ltd,5266
32UB,Boston Borough Council,Elections,3103,Hire Of Halls,3931,06.05.21 HIRE OF HALL - ELECTIONS,14/05/2021,226075,450,Revenue,Fenside Community Centre,6284
32UB,Boston Borough Council,Dog Collection,3219,Professional Services,3301,DOG COLLECTIONS - APRIL 21,14/05/2021,226077,1120.83,Revenue,Pestinator Uk Ltd,13043
32UB,Boston Borough Council,Treasury Management,1510,Professional Services,3301,01.05.21-31.10.21 TREASURY SERVICES,14/05/2021,226078,4000,Revenue,Link Treasury Services Limited,1442
32UB,Boston Borough Council,Bereavement,2401,Plant Maintenance,2012,TO CARRY OUT A FULL ANNUAL SERVICE,21/05/2021,226079,450,Revenue,Leec Limited,14707
32UB,Boston Borough Council,Elections,3103,Hire Of Halls,3931,06.05.21 HIRE OF HALL,14/05/2021,226089,450,Revenue,Benington Community Heritage Trust,15492
32UB,Boston Borough Council,Elections,3103,Election Staff Fees & Exp,1030,FOOD & DRINK FOR ELECTION COUNT,27/05/2021,226090,696,Revenue,Boston College,11
32UB,Boston Borough Council,Corporate & Democratic Core,3102,Subscriptions,3600,TOOLKIT SUB 2021/22,14/05/2021,226091,5810,Revenue,Lg Futures,10273
32UB,Boston Borough Council,Building Mtc-Public Buildings,4402,Materials,3006,ROSEBERRY AVENUE MAINTENANCE,27/05/2021,226097,650,Revenue,Morbey Fencing,789
32UB,Boston Borough Council,Bed & Breakfast,3222,Bed And Breakfast Accom Fees,3306,30.04.21 - 06.05.21 INDIVIDUAL ROOM RENT,14/05/2021,226108,1305,Revenue,The New England Hotel,15731
32UB,Boston Borough Council,Covid 19,3246,Miscellaneous,3905,30.04.21-06.05.21 ROOM RENT,14/05/2021,226109,2940,Revenue,The New England Hotel,15731
32UB,Boston Borough Council,Covid 19,3246,Miscellaneous,3905,SECURITY 30.04.21-06.05.21,14/05/2021,226110,1176,Revenue,The New England Hotel,15731
32UB,Boston Borough Council,Community Testing Centre,3516,Overtime Payments,1022,W.E 08.05.21 AGENCY,21/05/2021,226113,976.6,Revenue,Aligra Personnel Limited,16541
32UB,Boston Borough Council,Community Testing Centre,3516,Overtime Payments,1022,TEMPORARY WORKERS W.E 18.04.21,21/05/2021,226117,4273.82,Revenue,Als Managed Services Limited,16620
32UB,Boston Borough Council,Refuse Collection,3234,Agency Staff,1032,SUPPLY OF TEMPORARY STAFF W/E 09.05.21,21/05/2021,226119,7081.27,Revenue,Comensura Ltd,9671
32UB,Boston Borough Council,Grounds Maintenance,4401,Agency Staff,1032,SUPPLY OF TEMPORARY STAFF W/E 09.05.21,21/05/2021,226119,357.23,Revenue,Comensura Ltd,9671
32UB,Boston Borough Council,It Investment Programme,6201,Purchases,8005,IPHONE SE 2020 64GB BLACK X 34,14/05/2021,226146,10744,Capital,Vodafone,2176
32UB,Boston Borough Council,It Investment Programme,6201,Purchases,8005,APPLE IPHONE 11 64GB BLACK X 3,14/05/2021,226147,1497,Capital,Vodafone,2176
32UB,Boston Borough Council,It Investment Programme,6201,Purchases,8005,EBU POBO IPHONE 11 64GB X 4,14/05/2021,226148,1896,Capital,Vodafone,2176
32UB,Boston Borough Council,It Investment Programme,6201,Purchases,8005,IPHONE SE 2020 64GB BLACK X 19,14/05/2021,226149,6327,Capital,Vodafone,2176
32UB,Boston Borough Council,Computer Costs,1503,Professional Services,3301,PROFESSIONAL SERVICES APRIL & MAY 21,21/05/2021,226237,476194.84,Revenue,Public Sector Partnership Services Ltd,16086
32UB,Boston Borough Council,It Investment Programme,6201,Payments To Contractors,8002,CCN - CAPITAL & TRANSFORMATION COSTS,21/05/2021,226238,618975,Capital,Public Sector Partnership Services Ltd,16086
32UB,Boston Borough Council,Vehicle Holding Account,2206,Tyres,2208,TYRE MAINTENANCE CONTRACT  MAY 2021,21/05/2021,226244,2674.71,Revenue,B A Bush & Son Ltd,12196
32UB,Boston Borough Council,Elections,3103,Postages,3405,16.04.21 POST CHARGES,21/05/2021,226248,9877.59,Revenue,Royal Mail,86
32UB,Boston Borough Council,Princess Royal Sports Arena,3452,Biomass Fuel,2093,WOODCHIP - PRSA,27/05/2021,226250,1104,Revenue,Sdl Biomass Ltd,15677
32UB,Boston Borough Council,Office Cleaning,3203,Agency Staff,1032,CLEANERS X 2,21/05/2021,226253,521.57,Revenue,Workforce (Boston) Limited,11042
32UB,Boston Borough Council,Bed & Breakfast,3222,Bed And Breakfast Accom Fees,3306,07.05.21-13.05.21 INDIVIDUAL RENT,21/05/2021,226267,1170,Revenue,The New England Hotel,15731
32UB,Boston Borough Council,Covid 19,3246,Miscellaneous,3905,07.05.21-13.05.21 ROOM RENT,21/05/2021,226268,2940,Revenue,The New England Hotel,15731
32UB,Boston Borough Council,Covid 19,3246,Miscellaneous,3905,07.05.21-13.05.21 SECURITY,21/05/2021,226269,1176,Revenue,The New England Hotel,15731
32UB,Boston Borough Council,Bed & Breakfast,3222,Bed And Breakfast Accom Fees,3306,23.02.21-01.03.21 - ROOM 11 DOUBLE,21/05/2021,226271,393.33,Revenue,20 Hotel & Bar Ltd,14525
32UB,Boston Borough Council,Community Testing Centre,3516,Hire Of Halls,3931,26.03.21-30.04.21 ROOM HIRE COVID,21/05/2021,226275,625,Revenue,Magna Vitae Leisure Trust,13539
32UB,Boston Borough Council,Elections,3103,Hire Of Halls,3931,06.05.21 HALL HIRE - ELECTIONS,21/05/2021,226281,256,Revenue,Skirbeck St Nicholas Community Centre,2508
32UB,Boston Borough Council,Grounds Maintenance,4401,Materials,3006,2 PALLETS (51) PH POT BEDDING COMPOST 80 LITRES @ 5.85 PER BAG,27/05/2021,226290,596.7,Revenue,Premium Horticulture Ltd,13254
32UB,Boston Borough Council,Office Cleaning,3203,Agency Staff,1032,CLEANER X 2,21/05/2021,226303,575.52,Revenue,Workforce (Boston) Limited,11042
32UB,Boston Borough Council,Refuse Collection,3234,Agency Staff,1032,SUPPLY OF TEMPORARY STAFF W/E 16.05.21,21/05/2021,226305,8075.23,Revenue,Comensura Ltd,9671
32UB,Boston Borough Council,Grounds Maintenance,4401,Agency Staff,1032,SUPPLY OF TEMPORARY STAFF W/E 16.05.21,21/05/2021,226305,448.05,Revenue,Comensura Ltd,9671
32UB,Boston Borough Council,Elections,3103,Printing And Stationery,3201,BOSTON 2021 PCC BALLOT BOOKS,21/05/2021,226306,4110.82,Revenue,Print Image Network Ltd,12844
32UB,Boston Borough Council,Elections,3103,Printing And Stationery,3201,BOSTON PCC LARGE PRINT BP 2021,21/05/2021,226307,391,Revenue,Print Image Network Ltd,12844
32UB,Boston Borough Council,Grants General,3455,Voluntary Org Grants,3602,SLA 2021/22 Q1 APRIL 21 - JUNE 21,21/05/2021,226310,16250,Revenue,Citizens Advice Mid Lincolnshire,540
32UB,Boston Borough Council,Building Mtc-Public Buildings,4402,Materials,3006,26.02.21 - CEMETERY FENCE REPAIRS,21/05/2021,226312,375,Revenue,Princebuild Limited,2152
32UB,Boston Borough Council,Building Mtc-Public Buildings,4402,Materials,3006,28.04.21-6 MONTHLY SERVICE DOSING SYSTEM,27/05/2021,226314,790.36,Revenue,C.S.S. Pools And Leisure Ltd,12394
32UB,Boston Borough Council,Municipal Buildings,2404,Agency Staff,1032,SECURITY SERVICES MARCH 21,27/05/2021,226315,4765.14,Revenue,National Westminister Bank Plc,13781
32UB,Boston Borough Council,Community Testing Centre,3516,Overtime Payments,1022,TEMPORARY WORKERS W.E 09.05.21,21/05/2021,226317,4984.88,Revenue,Als Managed Services Limited,16620
32UB,Boston Borough Council,Community Testing Centre,3516,Hire Of Halls,3931,27.04.21-30.04.21 HIRE OF HALL LFT,21/05/2021,226318,293.25,Revenue,Trusthorpe Village Hall,16616
32UB,Boston Borough Council,Community Testing Centre,3516,Hire Of Halls,3931,11.05.21-14.05.21 HIRE OF HALL LFT,21/05/2021,226320,293.25,Revenue,Trusthorpe Village Hall,16616
32UB,Boston Borough Council,Community Testing Centre,3516,Overtime Payments,1022,W.E 01.05.21 AGENCY,21/05/2021,226321,976.6,Revenue,Aligra Personnel Limited,16541
32UB,Boston Borough Council,Community Testing Centre,3516,Equipment Purchase,3001,LEGIONELLA RISK ASSESSMENT,27/05/2021,226337,295,Revenue,Boston Water Smart,16643
32UB,Boston Borough Council,Blg Control (Non Fee Earning),3202,Professional Services,3301,FORMER GOLDEN DRAGON RESTUARANT WORK,21/05/2021,226338,1550,Revenue,Foundations & Buildings Ltd,14624
32UB,Boston Borough Council,Central Training & Recruitment,2001,Training Courses,1108,MULTI AGENCY GOLD INCIDENT COMMAND (MAGIC) TRAINING COURSE,27/05/2021,226342,2400,Revenue,Lincolnshire County Council,12322
32UB,Boston Borough Council,Community Testing Centre,3516,Overtime Payments,1022,W.E 15.05.21 AGENCY,27/05/2021,226343,976.6,Revenue,Aligra Personnel Limited,16541
32UB,Boston Borough Council,Pe21 Boston Town Deal,6519,Payments To Contractors,8002,50% FEE PE21 MASTER PLAN,27/05/2021,226346,2250,Capital,Banks Long,15878
32UB,Boston Borough Council,Princess Royal Sports Arena,3452,Professional Services,3301,NLRF - MONITORING & EVALUATION GRANT,21/05/2021,226366,1542,Revenue,Leisure-Net Solutions Ltd,16655
32UB,Boston Borough Council,Refuse Collection,3234,Mobile Phones,3406,SERVICE CHARGES 20.04.21-19.05.21,27/05/2021,226453,258,Revenue,Kcom Group Plc,11400
32UB,Boston Borough Council,Elections,3103,Postages,3405,24.04.21-01.05.21 ELECTION RESPONSE PLUS,27/05/2021,226454,4103.78,Revenue,Royal Mail,86
32UB,Boston Borough Council,Bereavement,2401,Software Licences,3407,BACAS AND WEB SUPPORT 1ST APRIL 2021 TO 31ST MARCH 2022,27/05/2021,226463,1800,Revenue,Clear Skies Software Ltd,13063
32UB,Boston Borough Council,Corporate & Democratic Core,3102,Subscriptions,3600,MEMBERSHIP OF TEAM LINCOLNSHIRE,27/05/2021,226476,350,Revenue,Lincolnshire County Council,12322
32UB,Boston Borough Council,Covid 19,3246,Miscellaneous,3905,14.05.21-20.05.21 12 ROOM RENT,27/05/2021,226477,2940,Revenue,The New England Hotel,15731
32UB,Boston Borough Council,Covid 19,3246,Miscellaneous,3905,14.05.21-20.05.21 SECURITY,27/05/2021,226478,1176,Revenue,The New England Hotel,15731
32UB,Boston Borough Council,Planning Policy,3304,European Marine Site Project,3974,WNNMP CONTRIBUTION FY 2021/22,27/05/2021,226483,3510,Revenue,Norfolk County Council,955
32UB,Boston Borough Council,Bed & Breakfast,3222,Bed And Breakfast Accom Fees,3306,14.05.21 - 20.05.21 INDIVIDUAL RENT,27/05/2021,226484,1350,Revenue,The New England Hotel,15731
32UB,Boston Borough Council,Housing Benefits,2507,External Audit Fees,3504,HB SUBSIDY ASSURANCE Y/E 31.03.20,27/05/2021,226485,6800,Revenue,Mazars Llp,13918
32UB,Boston Borough Council,Community Testing Centre,3516,Overtime Payments,1022,TEMPORARY WORKERS W.E 11.04.21,27/05/2021,226487,4273.82,Revenue,Als Managed Services Limited,16620
32UB,Boston Borough Council,Community Testing Centre,3516,Overtime Payments,1022,TEMPORARY WORKERS W.E 02.05.21,27/05/2021,226488,4921.88,Revenue,Als Managed Services Limited,16620
32UB,Boston Borough Council,Housing Advice & Homelessness,3241,Water Rates,2050,HOMELESS HOSTELS 2 LEICESTER SQ 01.04.21-31.03.21,04/05/2021,70365,287.76,Revenue,Anglian Water,
32UB,Boston Borough Council,Housing Advice & Homelessness,3241,Water Rates,2050,HOMELESS HOSTELS 14 STATION STREET 01.04.21-31.03.21,04/05/2021,70365,314.98,Revenue,Anglian Water,
32UB,Boston Borough Council,Internal Communications,2504,Rental Of Phone System,3418,BT DD - RECURRING CHARGES APRIL 2021 - VP 79824270,07/05/2021,70396,434.05,Revenue,BT plc,
32UB,Boston Borough Council,Recycling,3238,Postages,3405,I-MAIL - GARDEN WASTE LETTERS - 06.04.21-09.04.21,06/05/2021,70398,354.95,Revenue,UK Mail,
32UB,Boston Borough Council,Nndr,9006,Business Rates Retention,4006,LINCS CC RE B RATES TARIFFS 2021.22,04/05/2021,70436,462664,Precept,Lincolnshire County Council,
32UB,Boston Borough Council,Corporate & Democratic Core,3102,Bank Charges,3510,HSBC BANK CHARGES,10/05/2021,70439,1697.65,Revenue,HSBC Bank plc,
32UB,Boston Borough Council,Credit Control Unit,1013,Postages,3405,I-MAIL - BOSTON SUMMONS - 12.04.21-16.04.21,13/05/2021,70490,349.3,Revenue,UK Mail,
32UB,Boston Borough Council,Nndr Control Account,5103,Central Government Share,7264,BRR CENTRAL SHARE 2021.22,04/05/2021,70492,922825,Precept,DCLG,
32UB,Boston Borough Council,Housing Advice & Homelessness,3241,Water Rates,2050,HOMELESS HOSTELS 1 LEICESTER SQ 01.04.21-31.03.22,04/05/2021,70535,287.76,Revenue,Anglian Water,
32UB,Boston Borough Council,Corporate & Democratic Core,3102,Bank Charges,3510,BOTTOMLINE MONTHLY AGREEMENT RE BACS,20/05/2021,70560,671,Revenue,Bottomline Technologies,
32UB,Boston Borough Council,Housing Services,2203,Postages,3405,I-MAIL - HOUSING SERVICES - 19.04.21-23.04.21,20/05/2021,70562,617.02,Revenue,UK Mail,
32UB,Boston Borough Council,Recycling,3238,Postages,3405,I-MAIL - GARDEN WASTE LETTERS - 19.04.21-23.04.21,20/05/2021,70562,683.66,Revenue,UK Mail,
32UB,Boston Borough Council,Nndr Control Account,5103,Central Government Share,7264,BRR CENTRAL SHARE 2021.22,19/05/2021,70566,922825,Precept,DCLG,
32UB,Boston Borough Council,Princess Royal Sports Arena,3452,P'Ship Pay & Conts To Schemes,3601,WFLCT LTD PRIORITY PAYMENT,21/05/2021,70601,93492,Revenue,WFLCT Ltd,
32UB,Boston Borough Council,Nndr,9006,Business Rates Retention,4006,LCC BR TARIFFS 2021.22,19/05/2021,70614,462664,Precept,Lincolnshire County Council,
32UB,Boston Borough Council,Corporate & Democratic Core,3102,Bank Charges,3510,CAPITA ACADEMY MANAGED SERVICES MONTHLY DD,26/05/2021,70626,4479,Revenue,Capita Software Services Limited,
32UB,Boston Borough Council,Bereavement,2401,Electricity,2021,MARIAN RD CEMETERY LODGE - 01.04.21-30.04.21,25/05/2021,70627,273.64,Revenue,Total Gas & Power,
32UB,Boston Borough Council,Bereavement,2401,Electricity,2021,ROBIN HOODS WALK CREM - 01.04.21-30.04.21,25/05/2021,70627,858.56,Revenue,Total Gas & Power,
32UB,Boston Borough Council,Municipal Buildings,2404,Electricity,2021,MB ACC 3004800128 - 01.04.21-30.04.21,25/05/2021,70627,749.2,Revenue,Total Gas & Power,
32UB,Boston Borough Council,Municipal Buildings,2404,Electricity,2021,MB ACC 3005069232 - 01.04.21-30.04.21,25/05/2021,70627,2818.03,Revenue,Total Gas & Power,
32UB,Boston Borough Council,Depot,2405,Electricity,2021,ST JOHNS RD LORRY PARK - 01.04.21-30.04.21,25/05/2021,70627,489.48,Revenue,Total Gas & Power,
32UB,Boston Borough Council,Redstone Caravan Site,3225,Electricity,2021,REDSTONE TRAVELLERS SITE - 01.04.21-30.04.21,25/05/2021,70627,2904.08,Revenue,Total Gas & Power,
32UB,Boston Borough Council,Housing Advice & Homelessness,3241,Electricity,2021,LEICESTER SQ TF FLAT 2 - 01.04.21-30.04.21,25/05/2021,70627,1605.46,Revenue,Total Gas & Power,
32UB,Boston Borough Council,Leisure Pool Services,3434,Electricity,2021,GMLC - 01.04.21-30.04.21,25/05/2021,70627,2718.4,Revenue,Total Gas & Power,
32UB,Boston Borough Council,Footway Lighting & Mtc,3447,Electricity,2021,FOOTWAY LIGHTING - 01.04.21-30.04.21,25/05/2021,70627,2706.95,Revenue,Total Gas & Power,
32UB,Boston Borough Council,Parking,3449,Electricity,2021,CAR PARK LIGHTING TICKET MACHINES - 01.04.21-30.04.21,25/05/2021,70627,586.71,Revenue,Total Gas & Power,
32UB,Boston Borough Council,Princess Royal Sports Arena,3452,Electricity,2021,PRSA - 01.04.21-30.04.21,25/05/2021,70627,4564.47,Revenue,Total Gas & Power,
32UB,Boston Borough Council,Recycling,3238,Postages,3405,I-MAIL - GARDEN WASTE LETTERS - 26.04.21-30.04.21,27/05/2021,70635,283.43,Revenue,UK Mail,
32UB,Boston Borough Council,Personnel & Payroll,1006,Software Maintenance,3408,ITRENT RENTAL FOR VOLUNTEERS - 15.05.21-14.08.21,28/05/2021,70650,582.25,Revenue,MHR International,
32UB,Boston Borough Council,Personnel & Payroll,1006,Software Maintenance,3408,ITRENT RENTAL - 15.05.21-14.08.21,28/05/2021,70650,2575,Revenue,MHR International,
32UB,Boston Borough Council,Internal Communications,2504,Rental Of Phone System,3418,FOEHN MONTHLY DD'S,28/05/2021,70651,2663.9,Revenue,Foehn,
32UB,Boston Borough Council,Vehicle Holding Account,2206,Fuel Transport,2201,FUEL TO 9.5.21 VO12 YTS,27/05/2021,70665,321.47,Revenue,Fuelcard Services Ltd,
32UB,Boston Borough Council,Vehicle Holding Account,2206,Fuel Transport,2201,FUEL TO 9.5.21,27/05/2021,70665,2931.48,Revenue,Fuelcard Services Ltd,
32UB,Boston Borough Council,Vehicle Holding Account,2206,Fuel Transport,2201,FUEL TO 9.5.21,28/05/2021,70669,1155.71,Revenue,Fuelcard Services Ltd,
32UB,Boston Borough Council,Drainage Board Precepts,9000,Precepts,6500,BLACK SLUICE IDB PAYMENT,28/05/2021,70677,421418.93,Precept,Blace Sluice IDB,
32UB,Boston Borough Council,Council Tax Summary Account,5000,Ct Requirement Lcc,7801,LCC ADDITIONAL PRECEPT,28/05/2021,70678,100522.6,Precept,Lincolnshire County Council,
32UB,Boston Borough Council,Council Tax Summary Account,5000,Ct Requirement Lpa,7802,LINCS POLICE PRECEPT,28/05/2021,70678,526213.99,Precept,Lincs Police,
32UB,Boston Borough Council,Council Tax Summary Account,5000,Ct Requirement Lcc,7801,LCC PRECEPT,28/05/2021,70678,2696234.93,Precept,Lincolnshire County Council,
32UB,Boston Borough Council,Nndr Control Account,5103,Lincs County Council Share,7266,LCC PRECEPT NNDR SHARE,28/05/2021,70678,112975.4,Precept,Lincolnshire County Council,
32UB,Boston Borough Council,Vehicle Holding Account,2206,Fuel Transport,2201,FUEL TO 16.5.21,31/05/2021,70716,774.99,Revenue,Fuelcard Services Ltd,
32UB,Boston Borough Council,Vehicle Holding Account,2206,Fuel Transport,2201,FUEL TO 16/5/21,31/05/2021,70725,2982.2,Revenue,Fuelcard Services Ltd,
32UB,Boston Borough Council,Vehicle Holding Account,2206,Materials,3006,TAX - FV56 VZH,18/05/2021,70896,277.5,Revenue,DVLA,
32UB,Boston Borough Council,Vehicle Holding Account,2206,Materials,3006,TAX - YR16 OFC,18/05/2021,70896,277.5,Revenue,DVLA,
32UB,Boston Borough Council,Vehicle Holding Account,2206,Materials,3006,TAX - YR16 OFH,18/05/2021,70896,277.5,Revenue,DVLA,
32UB,Boston Borough Council,Elections,3103,Equipment Purchase,3001,ELECTION EQUIPMENT,18/05/2021,70896,375,Revenue,Boston Van Hire,
32UB,Boston Borough Council,Bed & Breakfast,3222,Bed And Breakfast Accom Fees,3306,ACCOMMODATION FOR HOMELESS PERSON,18/05/2021,70896,303.33,Revenue,Premier Inn,
32UB,Boston Borough Council,Recycling,3238,Printing And Stationery,3201,LASER PRINTER DEPOT,18/05/2021,70896,369.73,Revenue,Ebuyer (UK) Ltd,
32UB,Boston Borough Council,Housing Advice & Homelessness,3241,Dclg Homelessness Grant,3613,RENTAL PAYMENT,18/05/2021,70896,535.83,Revenue,Belvoir Lettings,
32UB,Boston Borough Council,Leisure Pool Services,3434,Equipment Purchase,3001,SPEAKERS FOR STUDIO,18/05/2021,70896,265,Revenue,Amazon.co.uk,
32UB,Boston Borough Council,Grounds Maintenance,4401,Materials,3006,SKATE PARK,18/05/2021,70896,519.82,Revenue,Craftwork Engineering,
32UB,Boston Borough Council,Grounds Maintenance,4401,Materials,3006,TOOLS FOR PARK INSPECTOR,18/05/2021,70896,760.71,Revenue,Powertool Spares,
32UB,Boston Borough Council,Vehicle Holding Account,2206,Fuel Transport,2201,VEHICLE HOLDING A/C FUEL YK70 XZT,23/05/2021,70970,311.92,Revenue,Fuelcard Services Ltd,
32UB,Boston Borough Council,Vehicle Holding Account,2206,Fuel Transport,2201,VEHICLE HOLDING A/C FUEL YK70 XZY,23/05/2021,70970,329.37,Revenue,Fuelcard Services Ltd,
32UB,Boston Borough Council,Vehicle Holding Account,2206,Fuel Transport,2201,VEHICLE HOLDING A/C FUEL YK70 XZZ,23/05/2021,70970,351.68,Revenue,Fuelcard Services Ltd,
32UB,Boston Borough Council,Vehicle Holding Account,2206,Fuel Transport,2201,VEHICLE HOLDING A/C FUEL YK70 XZW,23/05/2021,70970,371.82,Revenue,Fuelcard Services Ltd,
32UB,Boston Borough Council,Vehicle Holding Account,2206,Fuel Transport,2201,VEHICLE HOLDING A/C FUEL VX18 KFG,23/05/2021,70970,409.73,Revenue,Fuelcard Services Ltd,
32UB,Boston Borough Council,Vehicle Holding Account,2206,Fuel Transport,2201,VEHICLE HOLDING A/C FUEL V012 YTS,23/05/2021,70970,442.53,Revenue,Fuelcard Services Ltd,
32UB,Boston Borough Council,Vehicle Holding Account,2206,Fuel Transport,2201,VEHICLE HOLDING A/C FUEL YK70 XZW,31/05/2021,70972,266.86,Revenue,Fuelcard Services Ltd,
32UB,Boston Borough Council,Vehicle Holding Account,2206,Fuel Transport,2201,VEHICLE HOLDING A/C FUEL YK70 XZU,31/05/2021,70972,279.96,Revenue,Fuelcard Services Ltd,
32UB,Boston Borough Council,Vehicle Holding Account,2206,Fuel Transport,2201,VEHICLE HOLDING A/C FUEL YK70 XZX,31/05/2021,70972,336.61,Revenue,Fuelcard Services Ltd,
32UB,Boston Borough Council,Vehicle Holding Account,2206,Fuel Transport,2201,VEHICLE HOLDING A/C FUEL YK70 XZZ,31/05/2021,70972,352.23,Revenue,Fuelcard Services Ltd,
32UB,Boston Borough Council,Vehicle Holding Account,2206,Fuel Transport,2201,VEHICLE HOLDING A/C FUEL H4 BBC,31/05/2021,70972,398.23,Revenue,Fuelcard Services Ltd,
32UB,Boston Borough Council,Vehicle Holding Account,2206,Fuel Transport,2201,VEHICLE HOLDING A/C FUEL V012 YTS,31/05/2021,70972,528.95,Revenue,Fuelcard Services Ltd,
